bitfinex/quotes_BTCUSD_20240828
["timestamp","ask_amount","ask_price","bid_price","bid_amount"]
[1724864715556,0.001818,59250.0,59249.0,1.78597903]
[1724864715772,0.000818,59250.0,59249.0,1.77197903]
[1724864715987,0.000818,59250.0,59249.0,1.764211]
[1724864716224,0.02727615,59250.0,59249.0,1.326653]
[1724864716701,0.02727615,59250.0,59249.0,0.505337]
[1724864716957,0.02727615,59250.0,59247.0,0.168783]
[1724864717199,0.02727615,59250.0,59240.0,0.415307]
[1724864717436,0.02727615,59250.0,59234.0,0.0647]
[1724864717437,0.168789,59246.0,59239.0,0.337614]
[1724864717682,0.000818,59250.0,59247.0,0.168784]
[1724864717683,0.37377184,59248.0,59247.0,0.168784]
[1724864717967,0.000818,59250.0,59249.0,0.014]
[1724864718192,0.17296845,59250.0,59245.0,0.168789]
[1724864718428,0.000818,59250.0,59249.0,0.168779]
[1724864718644,0.000818,59250.0,59249.0,0.506337]
[1724864718869,0.000818,59250.0,59249.0,0.843895]
[1724864719093,0.000818,59250.0,59249.0,1.246353]
[1724864719573,0.02727792,59250.0,59249.0,1.246353]
[1724864719791,0.02727792,59250.0,59249.0,1.257353]
[1724864720932,0.02727792,59250.0,59249.0,1.246353]
[1724864721159,0.02727792,59250.0,59249.0,1.257353]
[1724864721418,0.02727792,59250.0,59249.0,1.583911]
[1724864721882,0.02727792,59250.0,59249.0,1.680511]
[1724864722329,0.000818,59250.0,59249.0,1.680511]
[1724864722548,0.000818,59250.0,59249.0,1.666511]
[1724864723123,0.000818,59250.0,59249.0,1.342953]
[1724864723365,0.000818,59250.0,59249.0,1.278053]
[1724864723804,0.000818,59250.0,59249.0,1.2789528]
[1724864724277,0.000818,59250.0,59249.0,0.1836788]
[1724864724989,0.000818,59250.0,59249.0,0.5212368]
[1724864725221,0.000818,59250.0,59249.0,0.8447948]
[1724864725456,0.000818,59250.0,59249.0,0.8587948]
[1724864725931,0.000818,59250.0,59249.0,0.5072368]
[1724864726139,0.000818,59250.0,59249.0,0.8587948]
[1724864726995,0.000818,59250.0,59249.0,0.9387948]
[1724864727439,0.000818,59250.0,59249.0,1.2623528]
[1724864727669,0.000818,59250.0,59249.0,0.9247948]
[1724864727888,0.000818,59250.0,59249.0,1.2763528]
[1724864728838,0.02727703,59250.0,59249.0,1.2763528]
[1724864729081,0.02727703,59250.0,59249.0,0.8447948]
[1724864729526,0.02727703,59250.0,59249.0,0.8587948]
[1724864730890,0.02727703,59250.0,59249.0,0.8447948]
[1724864731543,0.02727703,59250.0,59249.0,1.1823528]
[1724864731762,0.02727703,59250.0,59249.0,1.1963528]
[1724864732042,0.02727703,59250.0,59249.0,1.20605149]
[1724864732290,0.000818,59250.0,59249.0,1.35145149]
[1724864732772,0.000818,59250.0,59249.0,0.59413549]
[1724864733009,0.000818,59250.0,59249.0,0.51693549]
[1724864733656,0.000818,59250.0,59249.0,0.85449349]
[1724864733870,0.000818,59250.0,59249.0,0.51693549]
[1724864734284,0.000818,59250.0,59249.0,0.85449349]
[1724864734499,0.000818,59250.0,59249.0,0.86849349]
[1724864734974,0.000818,59250.0,59249.0,0.85449349]
[1724864735428,0.000818,59250.0,59249.0,0.86849349]
[1724864736160,0.02727798,59250.0,59249.0,0.86849349]
[1724864736373,0.02727798,59250.0,59249.0,0.85449349]
[1724864737459,0.02727798,59250.0,59249.0,0.51693549]
[1724864737890,0.02727798,59250.0,59249.0,0.85449349]
[1724864738392,0.02727798,59250.0,59249.0,0.86849349]
[1724864738652,0.02727798,59250.0,59249.0,1.19205149]
[1724864738886,0.02727798,59250.0,59249.0,1.61090949]
[1724864739115,0.02727798,59250.0,59249.0,1.62490949]
[1724864739367,0.02727798,59250.0,59249.0,1.27335149]
[1724864739599,0.02727798,59250.0,59249.0,1.28735149]
[1724864739840,0.02727798,59250.0,59249.0,1.27335149]
[1724864740272,0.02727798,59250.0,59249.0,1.28735149]
[1724864741139,0.50622686,59271.0,59267.0,0.168727]
[1724864741389,0.50622686,59271.0,59258.0,0.0784]
[1724864741603,0.168723,59269.0,59261.0,0.337488]
[1724864741818,0.337457,59267.0,59258.0,0.0784]
[1724864742070,0.168737,59264.0,59262.0,0.00971589]
[1724864742286,0.37039739,59267.0,59249.0,0.0008998]
[1724864742507,0.34083645,59266.0,59254.0,0.337529]
[1724864742721,0.168748,59260.0,59256.0,0.168758]
[1724864742970,0.168752,59259.0,59255.0,0.17847823]
[1724864743181,0.337488,59262.0,59258.0,0.006]
[1724864743182,0.168747,59261.0,59258.0,0.006]
[1724864743397,0.16875,59259.0,59258.0,0.006]
[1724864743675,0.168746,59261.0,59258.0,0.006]
[1724864743897,0.168748,59260.0,59258.0,0.006]
[1724864744153,0.34452895,59269.0,59258.0,0.006]
[1724864744154,0.000819,59271.0,59270.0,0.168719]
[1724864744364,0.000819,59271.0,59265.0,0.168731]
[1724864744611,0.000819,59271.0,59266.0,0.168728]
[1724864744822,0.000819,59271.0,59267.0,0.168727]
[1724864745052,0.000819,59271.0,59267.0,0.00971493]
[1724864745508,0.000819,59271.0,59270.0,0.179719]
[1724864745717,0.000819,59271.0,59270.0,0.168719]
[1724864745959,0.000819,59271.0,59270.0,0.51587136]
[1724864747080,0.000819,59271.0,59270.0,0.00971436]
[1724864747315,0.081019,59271.0,59270.0,0.00971436]
[1724864747569,0.081019,59271.0,59268.0,0.168723]
[1724864747804,0.000819,59271.0,59270.0,0.506157]
[1724864748281,0.000819,59271.0,59270.0,0.51584311]
[1724864748537,0.000819,59271.0,59270.0,0.02068611]
[1724864749448,0.02727296,59271.0,59270.0,0.18940511]
[1724864749662,0.02727296,59271.0,59270.0,0.02068611]
[1724864750785,0.02227296,59271.0,59270.0,0.18940511]
[1724864751061,0.417615,59275.0,59270.0,0.02068611]
[1724864751062,0.248906,59275.0,59270.0,0.02068611]
[1724864751286,0.248906,59275.0,59271.0,0.168716]
[1724864751287,0.25228045,59275.0,59271.0,0.168716]
[1724864751537,0.0802,59275.0,59274.0,0.168708]
[1724864752211,0.23330943,59279.0,59268.0,0.337449]
[1724864752460,0.05040943,59277.0,59268.0,0.34082316]
[1724864752681,0.05040943,59277.0,59272.0,0.337425]
[1724864753136,0.38780243,59278.0,59273.0,0.00968554]
[1724864753374,0.05040943,59277.0,59273.0,0.00968554]
[1724864753636,0.21911043,59277.0,59274.0,0.00968535]
[1724864753852,0.168703,59276.0,59273.0,0.168709]
[1724864754076,0.168703,59276.0,59275.0,0.00968516]
[1724864754505,0.55651543,59276.0,59275.0,0.00968516]
[1724864754720,0.07561415,59277.0,59274.0,0.00968535]
[1724864754938,0.21922602,59276.0,59274.0,0.004]
[1724864755149,0.05052402,59276.0,59275.0,0.00968516]
[1724864755376,0.24431315,59277.0,59275.0,0.00968516]
[1724864755602,0.24450635,59277.0,59275.0,0.005]
[1724864755818,0.168702,59276.0,59273.0,0.168709]
[1724864756034,0.05053805,59275.0,59273.0,0.168709]
[1724864756239,0.21924305,59275.0,59271.0,0.168714]
[1724864756703,0.05053805,59274.0,59272.0,0.168712]
[1724864756915,0.21924605,59274.0,59270.0,0.337438]
[1724864757127,0.168705,59275.0,59274.0,0.004]
[1724864757394,0.38796062,59276.0,59271.0,0.168714]
[1724864757395,0.168708,59274.0,59271.0,0.168714]
[1724864757570,0.21927234,59274.0,59271.0,0.174714]
[1724864757801,0.05056434,59273.0,59272.0,0.00968573]
[1724864758013,0.05056434,59274.0,59272.0,0.17839873]
[1724864758229,0.05056434,59274.0,59272.0,0.168713]
[1724864758458,1.012299,59271.0,59270.0,0.007]
[1724864758691,0.649642,59260.0,59259.0,0.00020314]
[1724864758932,1.69502939,59260.0,59259.0,0.00020314]
[1724864759168,1.40812215,59260.0,59259.0,0.00020314]
[1724864759396,1.0465001,59260.0,59259.0,0.00020314]
[1724864760054,0.67610271,59260.0,59259.0,0.00020314]
[1724864760737,1.01359771,59260.0,59259.0,0.00020314]
[1724864760968,1.06418547,59260.0,59259.0,0.00020314]
[1724864761221,1.06418547,59260.0,59259.0,0.00520314]
[1724864761455,1.06418547,59260.0,59259.0,0.00020314]
[1724864761686,1.06418547,59260.0,59259.0,0.00620314]
[1724864761912,1.06418547,59260.0,59259.0,0.00020314]
[1724864762128,1.52386718,59260.0,59259.0,0.00020314]
[1724864762344,1.49627942,59260.0,59259.0,0.00020314]
[1724864762568,1.347632,59260.0,59259.0,0.00020314]
[1724864763436,1.347632,59260.0,59259.0,0.00420314]
[1724864763437,1.57409963,59260.0,59259.0,0.00420314]
[1724864763653,1.447632,59260.0,59259.0,0.00020314]
[1724864764084,1.447632,59260.0,59259.0,0.00120314]
[1724864764299,1.785127,59260.0,59259.0,0.00120314]
[1724864764516,1.447632,59260.0,59259.0,0.00120314]
[1724864767026,1.424632,59260.0,59259.0,0.00120314]
[1724864767467,1.52583924,59260.0,59259.0,0.00120314]
[1724864767912,1.424632,59260.0,59259.0,0.00120314]
[1724864768138,1.21365715,59260.0,59259.0,0.001]
[1724864768369,1.55115215,59260.0,59259.0,0.001]
[1724864768598,1.23665715,59260.0,59259.0,0.001]
[1724864768975,0.168747,59260.0,59259.0,0.001]
[1724864769192,0.94831321,59260.0,59259.0,0.001]
[1724864769396,0.50961645,59260.0,59259.0,0.001]
[1724864769539,0.61081821,59260.0,59259.0,0.001]
[1724864769781,0.56021218,59260.0,59259.0,0.001]
[1724864770018,1.14330329,59260.0,59259.0,0.001]
[1724864770703,1.14330329,59260.0,59249.0,0.0008998]
[1724864770704,0.168776,59250.0,59249.0,0.0008998]
[1724864770912,0.29619184,59250.0,59249.0,0.01346987]
[1724864771398,1.28514629,59250.0,59249.0,0.01346987]
[1724864771605,1.29715964,59250.0,59232.0,0.0818]
[1724864771833,0.168836,59229.0,59228.0,0.50540786]
[1724864772057,0.168836,59229.0,59222.0,0.0818]
[1724864772058,0.37062183,59229.0,59222.0,0.0818]
[1724864772303,0.00337445,59228.0,59219.0,0.401828]
[1724864772554,0.337638,59235.0,59219.0,0.0641]
[1724864772555,0.37062183,59220.0,59219.0,0.0641]
[1724864772796,0.37062183,59220.0,59211.0,0.92497686]
[1724864772797,0.168861,59220.0,59211.0,0.92497686]
[1724864773023,0.168861,59220.0,59219.0,0.02179642]
[1724864773248,0.337712,59222.0,59213.0,0.337761]
[1724864773454,0.337712,59222.0,59212.0,0.062]
[1724864773455,0.168854,59223.0,59219.0,0.02179642]
[1724864773667,0.168854,59223.0,59216.0,0.168871]
[1724864773668,0.0785,59227.0,59215.0,0.337746]
[1724864773912,0.337688,59227.0,59220.0,0.02179565]
[1724864774105,0.168853,59223.0,59221.0,0.02179489]
[1724864774344,0.16864993,59223.0,59218.0,0.168866]
[1724864774559,0.168849,59225.0,59219.0,0.02207592]
[1724864774787,0.168857,59222.0,59219.0,0.02207592]
[1724864775249,0.34107845,59224.0,59212.0,0.399765]
[1724864775250,0.168851,59224.0,59216.0,0.337745]
[1724864775486,0.37062183,59228.0,59221.0,0.248958]
[1724864775722,0.168845,59226.0,59222.0,0.02241231]
[1724864776182,0.37062183,59228.0,59222.0,0.02241231]
[1724864776392,0.37062183,59228.0,59224.0,0.168848]
[1724864776864,0.37062183,59228.0,59223.0,0.336704]
[1724864776865,0.37062183,59228.0,59225.0,0.19125377]
[1724864777080,0.001,59226.0,59225.0,0.02240777]
[1724864777310,0.001,59226.0,59225.0,0.19125477]
[1724864777513,0.37062183,59228.0,59225.0,0.19125477]
[1724864777736,0.37162183,59228.0,59225.0,0.19125477]
[1724864777947,0.39809592,59228.0,59225.0,0.19125477]
[1724864778384,0.39809592,59228.0,59225.0,0.20025477]
[1724864778814,0.39809592,59228.0,59226.0,0.168844]
[1724864779088,0.02747409,59228.0,59227.0,0.844207]
[1724864779318,0.56693492,59228.0,59227.0,0.0223824]
[1724864779543,0.46119592,59228.0,59215.0,0.168874]
[1724864779769,0.37062183,59217.0,59215.0,0.168874]
[1724864779987,0.37062183,59217.0,59216.0,0.19166841]
[1724864780433,0.37062183,59217.0,59216.0,0.36054141]
[1724864780434,0.02647681,59217.0,59216.0,0.36054141]
[1724864780647,0.02647681,59217.0,59216.0,0.52941441]
[1724864781276,0.02747681,59217.0,59216.0,0.20566841]
[1724864781508,0.02647681,59217.0,59216.0,0.19166841]
[1724864781730,0.02647681,59217.0,59216.0,0.52941441]
[1724864781993,0.168857,59222.0,59218.0,0.168867]
[1724864782420,0.168857,59222.0,59219.0,0.02279311]
[1724864782645,0.00337445,59223.0,59219.0,0.02279311]
[1724864782899,0.168856,59222.0,59219.0,0.02179311]
[1724864783132,0.17222745,59223.0,59219.0,0.168864]
[1724864783339,0.168844,59227.0,59220.0,0.02262567]
[1724864783558,0.001,59222.0,59221.0,0.168859]
[1724864783760,0.001,59222.0,59221.0,0.1914987]
[1724864784231,0.00337445,59226.0,59221.0,0.0226397]
[1724864784448,0.506568,59222.0,59221.0,0.0226397]
[1724864784681,0.506568,59222.0,59216.0,0.1697718]
[1724864784682,0.168864,59219.0,59216.0,0.1697718]
[1724864784923,0.169856,59222.0,59218.0,0.168866]
[1724864785130,0.001,59222.0,59219.0,0.02262275]
[1724864785352,0.169856,59222.0,59219.0,0.02262275]
[1724864785843,0.001,59222.0,59219.0,0.02262275]
[1724864786085,0.02647708,59228.0,59222.0,0.0827]
[1724864786318,0.02647708,59228.0,59227.0,0.168841]
[1724864786566,0.02647708,59228.0,59227.0,0.94949238]
[1724864786791,0.02647708,59228.0,59227.0,1.35047538]
[1724864787060,0.0811,59252.0,59246.0,0.168786]
[1724864787281,0.37062183,59253.0,59242.0,0.146]
[1724864787282,0.00337445,59251.0,59242.0,0.146]
[1724864787515,0.02984013,59251.0,59248.0,0.16778]
[1724864787760,0.0811,59256.0,59249.0,0.02246374]
[1724864787992,0.168756,59257.0,59252.0,0.168767]
[1724864788221,0.19523347,59253.0,59248.0,0.168781]
[1724864788452,0.168771,59252.0,59245.0,0.337578]
[1724864788694,0.168771,59252.0,59247.0,0.168783]
[1724864789176,0.168771,59252.0,59247.0,0.167783]
[1724864789419,0.168771,59252.0,59248.0,0.168781]
[1724864789893,0.37062183,59253.0,59248.0,0.168781]
[1724864790137,0.02646349,59252.0,59248.0,0.168781]
[1724864790382,0.168782,59248.0,59247.0,0.008]
[1724864790863,0.16878,59249.0,59247.0,0.008]
[1724864791371,0.16878,59249.0,59244.0,0.168791]
[1724864791607,0.168783,59248.0,59242.0,0.146]
[1724864791881,0.02646349,59252.0,59245.0,0.16879]
[1724864792124,0.16878,59249.0,59245.0,0.16879]
[1724864792331,0.168782,59248.0,59243.0,0.168794]
[1724864792563,0.02646349,59252.0,59248.0,0.008]
[1724864792774,0.168776,59250.0,59248.0,0.008]
[1724864793245,0.168775,59251.0,59248.0,0.008]
[1724864793477,0.02983794,59252.0,59242.0,0.146]
[1724864793478,0.02646349,59252.0,59244.0,0.00337566]
[1724864793689,0.02646349,59252.0,59248.0,0.177781]
[1724864793906,0.02646349,59252.0,59249.0,0.168779]
[1724864794345,0.19523349,59252.0,59248.0,0.011]
[1724864794546,0.19523349,59252.0,59250.0,0.168775]
[1724864794547,0.02646349,59252.0,59250.0,0.168775]
[1724864794761,0.02646349,59252.0,59248.0,0.011]
[1724864794993,0.02646349,59252.0,59249.0,0.168777]
[1724864795412,0.168774,59251.0,59248.0,0.011]
[1724864795650,0.168779,59249.0,59243.0,0.337589]
[1724864795870,0.168779,59249.0,59245.0,0.168789]
[1724864796346,0.168779,59249.0,59243.0,0.337589]
[1724864796347,0.506337,59249.0,59248.0,0.011]
[1724864796557,1.181453,59249.0,59248.0,0.011]
[1724864796767,0.843895,59249.0,59248.0,0.011]
[1724864796983,0.843895,59249.0,59247.0,0.0008998]
[1724864796984,0.506346,59248.0,59247.0,0.0008998]
[1724864797199,0.168782,59248.0,59247.0,0.0008998]
[1724864797436,0.506346,59248.0,59247.0,0.0008998]
[1724864797651,0.168782,59248.0,59247.0,0.02292606]
[1724864797865,0.506346,59248.0,59247.0,0.02292606]
[1724864798111,0.02728149,59252.0,59247.0,0.02292606]
[1724864798112,0.02728149,59252.0,59250.0,0.168775]
[1724864798330,0.02728149,59252.0,59251.0,0.02203291]
[1724864798762,0.02728149,59252.0,59249.0,0.168779]
[1724864799001,0.02728149,59252.0,59251.0,0.02203291]
[1724864799252,0.168773,59251.0,59250.0,0.02203368]
[1724864799502,0.168773,59251.0,59247.0,0.1696838]
[1724864799503,0.506346,59248.0,59247.0,0.0008998]
[1724864800168,0.507346,59248.0,59247.0,0.0118998]
[1724864800632,0.507346,59248.0,59247.0,0.0008998]
[1724864800633,0.92181,59248.0,59247.0,0.0008998]
[1724864800834,0.92281,59248.0,59247.0,0.0138998]
[1724864801068,1.326774,59248.0,59247.0,0.0138998]
[1724864801295,1.46217955,59248.0,59247.0,0.0138998]
[1724864801517,1.326774,59248.0,59247.0,0.0138998]
[1724864801980,1.182474,59248.0,59247.0,0.0138998]
[1724864802186,1.181474,59248.0,59247.0,0.0008998]
[1724864802406,1.182474,59248.0,59247.0,0.0118998]
[1724864802612,1.182474,59248.0,59247.0,0.0008998]
[1724864803044,1.183474,59248.0,59247.0,0.0098998]
[1724864804355,1.39602045,59248.0,59247.0,0.0098998]
[1724864805021,1.26163169,59248.0,59247.0,0.0098998]
[1724864805450,1.31214162,59248.0,59247.0,0.0098998]
[1724864806144,1.65897262,59248.0,59247.0,0.0098998]
[1724864806400,1.55793132,59248.0,59247.0,0.0098998]
[1724864806644,1.65897262,59248.0,59247.0,0.0098998]
[1724864806885,1.55793132,59248.0,59247.0,0.0098998]
[1724864807364,1.22036732,59248.0,59247.0,0.0098998]
[1724864807609,1.27088853,59248.0,59247.0,0.0098998]
[1724864807854,1.55793132,59248.0,59247.0,0.0098998]
[1724864809049,1.78420615,59248.0,59247.0,0.0098998]
[1724864809286,1.78069569,59248.0,59247.0,0.0098998]
[1724864809521,1.78069569,59248.0,59225.0,0.0827]
[1724864809522,0.168844,59226.0,59225.0,0.0827]
[1724864809785,0.168844,59226.0,59217.0,0.0827]
[1724864809786,0.37572853,59226.0,59217.0,0.0827]
[1724864810029,0.29629963,59218.0,59217.0,0.0827]
[1724864810260,0.37235408,59218.0,59217.0,0.0827]
[1724864811500,0.39883005,59218.0,59217.0,0.0827]
[1724864811764,0.39883005,59218.0,59217.0,0.25557]
[1724864812007,0.10253042,59218.0,59217.0,0.25557]
[1724864812239,0.10253042,59218.0,59217.0,0.59331]
[1724864812723,0.10253042,59218.0,59217.0,0.25557]
[1724864812957,0.07605445,59218.0,59217.0,0.58931]
[1724864813434,0.07705445,59218.0,59217.0,0.60031]
[1724864813669,0.07605445,59218.0,59217.0,0.58931]
[1724864813900,0.07613689,59218.0,59217.0,0.42044]
[1724864814130,0.07713689,59218.0,59217.0,0.60031]
[1724864814362,0.001,59218.0,59217.0,0.60031]
[1724864814591,0.07656014,59218.0,59217.0,0.60031]
[1724864815496,0.10303585,59218.0,59217.0,1.27579]
[1724864816197,0.07656014,59218.0,59217.0,1.27579]
[1724864816437,0.07656014,59218.0,59217.0,1.34129]
[1724864817623,0.07656014,59218.0,59217.0,1.33029]
[1724864817624,0.07556014,59218.0,59217.0,1.33029]
[1724864817860,0.07656014,59218.0,59217.0,1.69123074]
[1724864818788,0.07656014,59218.0,59217.0,2.03597074]
[1724864818998,0.07656014,59218.0,59217.0,2.05897074]
[1724864819244,0.07656014,59218.0,59217.0,2.15897074]
[1724864819245,0.10303398,59218.0,59217.0,2.15897074]
[1724864819751,0.10203398,59218.0,59217.0,2.14797074]
[1724864820028,0.10203398,59218.0,59217.0,2.16197074]
[1724864820299,0.10203398,59218.0,59217.0,2.14797074]
[1724864820545,0.10203398,59218.0,59217.0,1.80823074]
[1724864820779,0.10203398,59218.0,59217.0,1.82223074]
[1724864821023,0.10203398,59218.0,59217.0,1.78023074]
[1724864821529,0.10203398,59218.0,59217.0,1.79423074]
[1724864821800,0.10203398,59218.0,59217.0,2.16997074]
[1724864822042,0.10203398,59218.0,59217.0,1.80513054]
[1724864822255,0.07556014,59218.0,59217.0,1.80013054]
[1724864822769,0.07622252,59236.0,59235.0,1.181733]
[1724864822991,0.01767157,59245.0,59241.0,0.168802]
[1724864823228,0.10269382,59242.0,59241.0,0.506406]
[1724864823450,0.10269382,59242.0,59241.0,0.51849116]
[1724864823664,0.10269382,59242.0,59241.0,0.85609516]
[1724864824130,0.10269382,59242.0,59241.0,0.86709516]
[1724864824557,0.10269382,59242.0,59241.0,0.85609516]
[1724864824879,0.07622252,59242.0,59241.0,0.85609516]
[1724864825110,0.07622252,59242.0,59241.0,1.19369916]
[1724864825536,0.000818,59248.0,59246.0,0.168787]
[1724864825979,0.000818,59248.0,59247.0,0.51840018]
[1724864826229,0.07893516,59248.0,59247.0,1.34043818]
[1724864826447,0.07893516,59248.0,59247.0,1.67800718]
[1724864826921,0.07893516,59248.0,59247.0,1.68000718]
[1724864827126,0.07893516,59248.0,59247.0,1.67800718]
[1724864827817,0.07893516,59248.0,59247.0,1.69200718]
[1724864828033,0.07893516,59248.0,59247.0,1.35443818]
[1724864828261,0.07893516,59248.0,59247.0,1.01686918]
[1724864828262,0.07873202,59248.0,59247.0,1.01686918]
[1724864828492,0.1051923,59248.0,59247.0,1.01686918]
[1724864828917,0.1051923,59248.0,59247.0,1.00286918]
[1724864829204,0.1051923,59248.0,59247.0,0.66530018]
[1724864829416,0.1051923,59248.0,59247.0,0.86996918]
[1724864829632,0.1051923,59248.0,59247.0,1.27063818]
[1724864829872,0.1051923,59248.0,59247.0,1.67250718]
[1724864830105,0.1051923,59248.0,59247.0,1.68650718]
[1724864830328,0.1051923,59248.0,59247.0,1.67250718]
[1724864830549,0.1051923,59248.0,59247.0,1.68650718]
[1724864831035,0.1051923,59248.0,59247.0,1.67250718]
[1724864831266,0.1051923,59248.0,59247.0,1.67450718]
[1724864831908,0.1051923,59248.0,59247.0,1.77250718]
[1724864832138,0.07873202,59248.0,59247.0,1.77250718]
[1724864832567,0.07873202,59248.0,59247.0,1.77934012]
[1724864832796,0.07873202,59248.0,59247.0,1.79334012]
[1724864833243,0.07873202,59248.0,59247.0,1.77934012]
[1724864833452,0.07873202,59248.0,59247.0,1.79534012]
[1724864833900,0.07873202,59248.0,59247.0,1.78134012]
[1724864834159,0.07873202,59248.0,59247.0,1.79334012]
[1724864835084,0.07873202,59248.0,59247.0,1.79534012]
[1724864835331,0.1051905,59248.0,59247.0,2.17090912]
[1724864836222,0.07873202,59248.0,59247.0,2.17090912]
[1724864836437,0.07873202,59248.0,59247.0,2.15690912]
[1724864836685,0.07873202,59248.0,59247.0,1.81934012]
[1724864836917,0.07873202,59248.0,59247.0,2.17090912]
[1724864837589,0.07873202,59248.0,59247.0,1.83134012]
[1724864837811,0.07873202,59248.0,59247.0,2.16890912]
[1724864838028,0.07873202,59248.0,59247.0,1.82834012]
[1724864838255,0.07873202,59248.0,59247.0,1.79150718]
[1724864838497,0.10518978,59248.0,59247.0,1.81450718]
[1724864839115,0.10518978,59248.0,59247.0,1.81950718]
[1724864839340,0.10518978,59248.0,59247.0,1.82450718]
[1724864839567,0.10518978,59248.0,59247.0,1.82650718]
[1724864839989,0.10518978,59248.0,59247.0,1.81950718]
[1724864840206,0.10518978,59248.0,59247.0,1.79650718]
[1724864840671,0.10518978,59248.0,59247.0,1.79850718]
[1724864842077,0.07873202,59248.0,59247.0,1.79850718]
[1724864842284,0.07873202,59248.0,59247.0,2.14107618]
[1724864842551,0.07873202,59248.0,59247.0,2.16407618]
[1724864842981,0.07873202,59248.0,59247.0,1.82650718]
[1724864843815,0.07873202,59248.0,59247.0,2.16407618]
[1724864844378,0.07873202,59248.0,59247.0,1.82650718]
[1724864845014,0.07873202,59248.0,59247.0,2.16407618]
[1724864845268,0.10518939,59248.0,59247.0,2.16407618]
[1724864845931,0.07873202,59248.0,59247.0,2.16407618]
[1724864846137,0.07873202,59248.0,59247.0,2.16497598]
[1724864848819,0.07873202,59248.0,59247.0,1.82740698]
[1724864849051,0.07873202,59248.0,59247.0,1.82540698]
[1724864849730,0.07873202,59248.0,59247.0,2.16497598]
[1724864850447,0.07873202,59248.0,59247.0,1.82740698]
[1724864850945,0.07873202,59248.0,59247.0,2.16497598]
[1724864852568,0.000818,59252.0,59251.0,0.017]
[1724864852569,1e-06,59252.0,59251.0,0.017]
[1724864852828,0.0739947,59252.0,59251.0,2.34941803]
[1724864853083,0.0739947,59252.0,59251.0,2.78696503]
[1724864855117,1.5e-07,59252.0,59251.0,2.80096503]
[1724864855343,0.000818,59271.0,59270.0,0.168719]
[1724864855553,0.05594015,59271.0,59270.0,0.843595]
[1724864855804,0.05594015,59271.0,59270.0,1.19305584]
[1724864856475,0.05918677,59271.0,59270.0,1.19305584]
[1724864857148,0.44500077,59291.0,59270.0,0.01202284]
[1724864857362,0.168672,59287.0,59284.0,0.168679]
[1724864857639,0.438143,59291.0,59284.0,0.168679]
[1724864857640,0.438143,59291.0,59285.0,0.01201594]
[1724864857820,0.438143,59291.0,59285.0,0.18069194]
[1724864857821,0.168666,59289.0,59285.0,0.18069194]
[1724864858052,0.02645174,59287.0,59285.0,0.18069194]
[1724864858311,0.02645174,59287.0,59286.0,0.843367]
[1724864858525,0.05166114,59287.0,59286.0,1.180714]
[1724864858764,0.0252094,59287.0,59286.0,1.19269575]
[1724864860104,0.0252094,59287.0,59286.0,1.53004275]
[1724864860758,0.05165478,59287.0,59286.0,1.53004275]
[1724864861642,0.05165478,59287.0,59286.0,1.61164275]
[1724864861862,0.05165478,59287.0,59286.0,1.62564275]
[1724864862080,0.0252094,59287.0,59286.0,1.62564275]
[1724864863123,0.0252094,59287.0,59286.0,1.61164275]
[1724864863551,0.0252094,59287.0,59286.0,1.62564275]
[1724864863986,0.0252094,59287.0,59286.0,2.05738975]
[1724864864198,0.0252094,59287.0,59286.0,2.15738975]
[1724864864840,0.0252094,59287.0,59286.0,2.16938975]
[1724864865757,4e-07,59288.0,59287.0,1.872381]
[1724864866019,0.02589072,59288.0,59287.0,2.15286602]
[1724864866237,3.2e-07,59288.0,59287.0,2.15286602]
[1724864866466,0.000819,59291.0,59290.0,1.954487]
[1724864866700,0.000819,59291.0,59290.0,1.728162]
[1724864866920,0.000819,59291.0,59290.0,1.73992175]
[1724864868042,0.02726067,59291.0,59290.0,1.75592175]
[1724864868715,0.02726067,59291.0,59290.0,2.09324675]
[1724864869186,0.02726067,59291.0,59290.0,2.09124675]
[1724864869398,0.02726067,59291.0,59290.0,2.07924675]
[1724864869641,0.02726067,59291.0,59290.0,2.1000595]
[1724864870496,0.02726067,59291.0,59290.0,2.0860595]
[1724864870700,0.02726067,59291.0,59290.0,2.0960595]
[1724864870915,0.02726067,59291.0,59290.0,2.1735595]
[1724864871137,0.02726067,59291.0,59290.0,1.8202345]
[1724864872010,0.000819,59291.0,59290.0,1.8102345]
[1724864872266,0.000819,59291.0,59290.0,1.8122345]
[1724864872652,0.000819,59291.0,59290.0,1.8262345]
[1724864872892,0.000819,59291.0,59290.0,1.29239675]
[1724864873113,0.000819,59291.0,59290.0,2.06294675]
[1724864873325,0.00818,59294.0,59293.0,1.276474]
[1724864873562,0.00818,59294.0,59293.0,2.112788]
[1724864873784,0.00772,59312.0,59311.0,1.180217]
[1724864874257,0.00772,59312.0,59311.0,1.19164072]
[1724864876020,0.00772,59312.0,59311.0,1.20564072]
[1724864876241,0.00772,59312.0,59311.0,1.54784572]
[1724864876454,0.00772,59312.0,59311.0,1.63414572]
[1724864876671,0.00772,59312.0,59311.0,1.82224572]
[1724864876907,0.00772,59312.0,59311.0,2.15945072]
[1724864877139,0.03415267,59312.0,59311.0,1.82024572]
[1724864877361,0.00817,59320.0,59318.0,1.180077]
[1724864877781,0.00817,59320.0,59318.0,1.55160577]
[1724864878003,0.00817,59320.0,59318.0,1.21444077]
[1724864878458,0.00817,59320.0,59318.0,1.55160577]
[1724864878706,0.00817,59320.0,59318.0,1.63280577]
[1724864879579,0.00817,59320.0,59318.0,1.64680577]
[1724864879787,0.0268302,59319.0,59318.0,1.64680577]
[1724864880711,0.0268302,59319.0,59318.0,1.75180577]
[1724864881811,0.0004,59319.0,59318.0,1.75180577]
[1724864883532,0.001218,59319.0,59318.0,1.75180577]
[1724864884845,0.001218,59319.0,59318.0,2.16697077]
[1724864885101,0.001218,59319.0,59318.0,1.82780577]
[1724864885531,0.001218,59319.0,59318.0,1.81380577]
[1724864885761,0.001218,59319.0,59318.0,1.74680577]
[1724864885978,0.001218,59319.0,59318.0,1.73280577]
[1724864886419,0.001218,59319.0,59318.0,1.74680577]
[1724864886632,0.001218,59319.0,59318.0,1.73280577]
[1724864887057,0.001218,59319.0,59318.0,1.74680577]
[1724864887272,0.02764719,59319.0,59318.0,1.74680577]
[1724864887504,0.02764719,59319.0,59318.0,1.67080608]
[1724864888673,0.02764719,59319.0,59318.0,1.66180608]
[1724864888910,0.02764719,59319.0,59318.0,1.75480608]
[1724864889115,0.02764719,59319.0,59318.0,1.74080608]
[1724864889318,0.16560287,59343.0,59339.0,0.168522]